[Event "January 9 Early 2024"]
[Site "https://www.chess.com"]
[Date "2024.01.11"]
[Round "1"]
[White "Costachi, Mihnea"]
[Black "Frayna, Janelle Mae"]
[Result "1-0"]
[Board "75"]
[TimeControl "180+1"]
[WhiteFideId "1217518"]
[BlackFideId "5212499"]
[WhiteElo "2855"]
[BlackElo "2460"]
[WhiteTeam "ROU"]
[BlackTeam "PHI"]
[WhiteClock "0:00:35"]
[BlackClock "0:01:40"]

1. Nc3 {[%clk 0:03:00]}  Nf6 {[%clk 0:02:57]} 2. e4 {[%clk 0:03:00]}  e5 {[%clk 0:02:56]} 3. Bc4 {[%clk 0:03:00]}  Nxe4 {[%clk 0:02:55]} 4. Qh5 {[%clk 0:03:00]}  Nd6 {[%clk 0:02:55]} 5. Bb3 {[%clk 0:02:59]}  Be7 {[%clk 0:02:45]} 6. Qxe5 {[%clk 0:02:58]}  O-O {[%clk 0:02:44]} 7. Nge2 {[%clk 0:02:32]}  Nc6 {[%clk 0:02:40]} 8. Qh5 {[%clk 0:02:24]}  g6 {[%clk 0:02:37]} 9. Qf3 {[%clk 0:02:19]}  Nf5 {[%clk 0:02:37]} 10. O-O {[%clk 0:02:13]}  Ncd4 {[%clk 0:02:36]} 11. Nxd4 {[%clk 0:02:12]}  Nxd4 {[%clk 0:02:37]} 12. Qf4 {[%clk 0:01:58]}  Nxb3 {[%clk 0:02:34]} 13. axb3 {[%clk 0:01:59]}  c6 {[%clk 0:02:34]} 14. d3 {[%clk 0:01:51]}  d5 {[%clk 0:02:33]} 15. Re1 {[%clk 0:01:51]}  Bd6 {[%clk 0:02:33]} 16. Qh6 {[%clk 0:01:47]}  Qf6 {[%clk 0:02:24]} 17. Bg5 {[%clk 0:01:46]}  Qg7 {[%clk 0:02:24]} 18. Qh4 {[%clk 0:01:42]}  f6 {[%clk 0:02:24]} 19. Bh6 {[%clk 0:01:37]}  Qf7 {[%clk 0:02:18]} 20. Bxf8 {[%clk 0:01:36]}  Bxf8 {[%clk 0:02:19]} 21. Na4 {[%clk 0:01:30]}  Bf5 {[%clk 0:02:15]} 22. Qf4 {[%clk 0:01:17]}  Re8 {[%clk 0:02:12]} 23. Nc3 {[%clk 0:01:13]}  a6 {[%clk 0:02:10]} 24. Rxe8 {[%clk 0:01:09]}  Qxe8 {[%clk 0:02:09]} 25. Qc7 {[%clk 0:01:10]}  Qe7 {[%clk 0:02:07]} 26. Qxe7 {[%clk 0:01:09]}  Bxe7 {[%clk 0:02:08]} 27. h3 {[%clk 0:01:05]}  Kf7 {[%clk 0:02:07]} 28. g4 {[%clk 0:01:05]}  Bd7 {[%clk 0:02:07]} 29. Kg2 {[%clk 0:01:05]}  Bd6 {[%clk 0:02:07]} 30. Ne2 {[%clk 0:01:04]}  Be5 {[%clk 0:02:05]} 31. d4 {[%clk 0:01:03]}  Bd6 {[%clk 0:02:06]} 32. f4 {[%clk 0:01:04]}  g5 {[%clk 0:02:02]} 33. f5 {[%clk 0:01:01]}  h5 {[%clk 0:02:01]} 34. c4 {[%clk 0:00:58]}  h4 {[%clk 0:01:51]} 35. Nc3 {[%clk 0:00:57]}  dxc4 {[%clk 0:01:47]} 36. bxc4 {[%clk 0:00:58]}  c5 {[%clk 0:01:47]} 37. d5 {[%clk 0:00:57]}  Be5 {[%clk 0:01:46]} 38. Ne4 {[%clk 0:00:55]}  Bd4 {[%clk 0:01:43]} 39. Nd6+ {[%clk 0:00:49]}  Ke7 {[%clk 0:01:43]} 40. Nxb7 {[%clk 0:00:50]}  Bxb2 {[%clk 0:01:43]} 41. Rxa6 {[%clk 0:00:43]}  Bd4 {[%clk 0:01:43]} 42. d6+ {[%clk 0:00:42]}  Kf7 {[%clk 0:01:42]} 43. Ra7 {[%clk 0:00:38]}  Bc6+ {[%clk 0:01:42]} 44. Kf1 {[%clk 0:00:39]}  Ke8 {[%clk 0:01:41]} 45. Na5 {[%clk 0:00:35]}  Be4 {[%clk 0:01:41]} 46. Re7+ {[%clk 0:00:35]}  Kd8 {[%clk 0:01:40]} 47. Rxe4 {[%clk 0:00:35]} 1-0

[Event "January 9 Early 2024"]
[Site "https://www.chess.com"]
[Date "2024.01.11"]
[Round "1"]
[White "Zaksaite, Salomeja"]
[Black "Araujo Sanchez, Josue"]
[Result "0-1"]
[Board "77"]
[TimeControl "180+1"]
[WhiteFideId "12801496"]
[BlackFideId "6416896"]
[WhiteElo "2345"]
[BlackElo "2670"]
[WhiteTeam "LTU"]
[BlackTeam "DOM"]
[WhiteClock "0:00:03"]
[BlackClock "0:02:03"]

1. e4 {[%clk 0:03:00]}  g6 {[%clk 0:03:00]} 2. d4 {[%clk 0:03:00]}  Bg7 {[%clk 0:03:01]} 3. Nc3 {[%clk 0:02:57]}  c6 {[%clk 0:03:01]} 4. h3 {[%clk 0:02:52]}  d5 {[%clk 0:03:00]} 5. e5 {[%clk 0:02:52]}  f6 {[%clk 0:02:49]} 6. Nf3 {[%clk 0:02:51]}  Nh6 {[%clk 0:02:44]} 7. Bf4 {[%clk 0:02:51]}  O-O {[%clk 0:02:43]} 8. Qd2 {[%clk 0:02:34]}  Nf7 {[%clk 0:02:42]} 9. Bd3 {[%clk 0:02:28]}  fxe5 {[%clk 0:02:40]} 10. dxe5 {[%clk 0:02:22]}  e6 {[%clk 0:02:35]} 11. h4 {[%clk 0:02:17]}  Nd7 {[%clk 0:02:34]} 12. h5 {[%clk 0:02:08]}  Nfxe5 {[%clk 0:02:33]} 13. Nxe5 {[%clk 0:02:08]}  Nxe5 {[%clk 0:02:33]} 14. O-O-O {[%clk 0:01:33]}  Nxd3+ {[%clk 0:02:28]} 15. cxd3 {[%clk 0:01:34]}  Qf6 {[%clk 0:02:26]} 16. Bd6 {[%clk 0:00:37]}  Qxf2 {[%clk 0:02:23]} 17. Bxf8 {[%clk 0:00:35]}  Qxd2+ {[%clk 0:02:23]} 18. Kxd2 {[%clk 0:00:31]}  Bxf8 {[%clk 0:02:23]} 19. hxg6 {[%clk 0:00:29]}  hxg6 {[%clk 0:02:24]} 20. d4 {[%clk 0:00:27]}  Bg7 {[%clk 0:02:22]} 21. Kd3 {[%clk 0:00:27]}  e5 {[%clk 0:02:23]} 22. dxe5 {[%clk 0:00:21]}  Bxe5 {[%clk 0:02:23]} 23. Rde1 {[%clk 0:00:20]}  Bf5+ {[%clk 0:02:23]} 24. Kd2 {[%clk 0:00:17]}  Bf6 {[%clk 0:02:24]} 25. Rhf1 {[%clk 0:00:13]}  Kg7 {[%clk 0:02:23]} 26. Ne2 {[%clk 0:00:11]}  Be4 {[%clk 0:02:19]} 27. Nf4 {[%clk 0:00:08]}  Bxb2 {[%clk 0:02:15]} 28. Ne6+ {[%clk 0:00:06]}  Kg8 {[%clk 0:02:14]} 29. Nc5 {[%clk 0:00:05]}  Re8 {[%clk 0:02:11]} 30. Nxe4 {[%clk 0:00:04]}  Rxe4 {[%clk 0:02:10]} 31. Rxe4 {[%clk 0:00:04]}  dxe4 {[%clk 0:02:10]} 32. Re1 {[%clk 0:00:04]}  Kf7 {[%clk 0:02:08]} 33. Rxe4 {[%clk 0:00:05]}  Bf6 {[%clk 0:02:08]} 34. Kd3 {[%clk 0:00:05]}  b5 {[%clk 0:02:06]} 35. a4 {[%clk 0:00:05]}  a6 {[%clk 0:02:05]} 36. axb5 {[%clk 0:00:06]}  axb5 {[%clk 0:02:05]} 37. g4 {[%clk 0:00:05]}  c5 {[%clk 0:02:05]} 38. Rf4 {[%clk 0:00:04]}  c4+ {[%clk 0:02:05]} 39. Ke4 {[%clk 0:00:04]}  Ke6 {[%clk 0:02:06]} 40. Rf1 {[%clk 0:00:04]}  b4 {[%clk 0:02:05]} 41. Rc1 {[%clk 0:00:03]}  c3 {[%clk 0:02:03]} 42. Kd3 {[%clk 0:00:03]}  b3 {[%clk 0:02:03]} 0-1

[Event "January 9 Early 2024"]
[Site "https://www.chess.com"]
[Date "2024.01.11"]
[Round "1"]
[White "Shuvalova, Polina"]
[Black "Hoeffer, David"]
[Result "1-0"]
[Board "79"]
[TimeControl "180+1"]
[WhiteFideId "24171760"]
[BlackFideId "24606766"]
[WhiteElo "2756"]
[BlackElo "2414"]
[WhiteTeam "RUS"]
[BlackTeam "GER"]
[WhiteClock "0:01:04"]
[BlackClock "0:00:33"]

1. e4 {[%clk 0:03:00]}  Nc6 {[%clk 0:02:55]} 2. Nf3 {[%clk 0:02:59]}  f5 {[%clk 0:02:55]} 3. exf5 {[%clk 0:02:58]}  d5 {[%clk 0:02:56]} 4. d4 {[%clk 0:02:58]}  Bxf5 {[%clk 0:02:56]} 5. Bb5 {[%clk 0:02:59]}  e6 {[%clk 0:02:55]} 6. O-O {[%clk 0:02:59]}  Bd6 {[%clk 0:02:54]} 7. Re1 {[%clk 0:02:57]}  Qf6 {[%clk 0:02:53]} 8. Bg5 {[%clk 0:02:55]}  Qg6 {[%clk 0:02:53]} 9. c4 {[%clk 0:02:51]}  h6 {[%clk 0:02:46]} 10. Bh4 {[%clk 0:02:45]}  a6 {[%clk 0:02:44]} 11. Bxc6+ {[%clk 0:02:32]}  bxc6 {[%clk 0:02:44]} 12. c5 {[%clk 0:02:33]}  Be7 {[%clk 0:02:41]} 13. Ne5 {[%clk 0:02:31]}  Qh7 {[%clk 0:02:30]} 14. Bg3 {[%clk 0:02:31]}  h5 {[%clk 0:02:11]} 15. h3 {[%clk 0:02:17]}  h4 {[%clk 0:02:10]} 16. Bh2 {[%clk 0:02:17]}  Bf6 {[%clk 0:02:05]} 17. Nxc6 {[%clk 0:02:15]}  Qg6 {[%clk 0:02:05]} 18. Qa4 {[%clk 0:01:58]}  Kf8 {[%clk 0:02:01]} 19. Qa3 {[%clk 0:01:48]}  Ne7 {[%clk 0:01:46]} 20. Nxe7 {[%clk 0:01:45]}  Kxe7 {[%clk 0:01:43]} 21. c6+ {[%clk 0:01:45]}  Kf7 {[%clk 0:01:43]} 22. Be5 {[%clk 0:01:42]}  Rh5 {[%clk 0:01:35]} 23. Nd2 {[%clk 0:01:32]}  Rg5 {[%clk 0:01:33]} 24. Qf3 {[%clk 0:01:32]}  Rh8 {[%clk 0:01:15]} 25. Re3 {[%clk 0:01:22]}  Rhh5 {[%clk 0:01:13]} 26. Rae1 {[%clk 0:01:20]}  Rxg2+ {[%clk 0:01:01]} 27. Qxg2 {[%clk 0:01:18]}  Rg5 {[%clk 0:01:02]} 28. Bg3 {[%clk 0:01:10]}  Bxd4 {[%clk 0:00:57]} 29. Nf3 {[%clk 0:01:08]}  Rxg3 {[%clk 0:00:44]} 30. fxg3 {[%clk 0:01:06]}  hxg3 {[%clk 0:00:33]} 31. Nxd4 {[%clk 0:01:04]} 1-0

[Event "January 9 Early 2024"]
[Site "https://www.chess.com"]
[Date "2024.01.11"]
[Round "1"]
[White "Yurovskykh, Oleksandr"]
[Black "Cardozo Munar, Carlos Eduardo"]
[Result "1-0"]
[Board "80"]
[TimeControl "180+1"]
[WhiteFideId "14134020"]
[BlackFideId "4409477"]
[WhiteElo "2603"]
[BlackElo "2231"]
[WhiteTeam "UKR"]
[BlackTeam "COL"]
[WhiteClock "0:01:23"]
[BlackClock "0:01:13"]

1. d4 {[%clk 0:02:40]}  d5 {[%clk 0:02:52]} 2. Bf4 {[%clk 0:02:33]}  e6 {[%clk 0:02:52]} 3. e3 {[%clk 0:02:33]}  Bd6 {[%clk 0:02:52]} 4. Bg3 {[%clk 0:02:32]}  Nf6 {[%clk 0:02:52]} 5. Nd2 {[%clk 0:02:32]}  Nbd7 {[%clk 0:02:53]} 6. Ngf3 {[%clk 0:02:31]}  O-O {[%clk 0:02:53]} 7. Bd3 {[%clk 0:02:31]}  Qe7 {[%clk 0:02:53]} 8. Ne5 {[%clk 0:02:29]}  Re8 {[%clk 0:02:53]} 9. c3 {[%clk 0:02:27]}  Nf8 {[%clk 0:02:53]} 10. f4 {[%clk 0:02:26]}  N6d7 {[%clk 0:02:53]} 11. e4 {[%clk 0:02:09]}  f6 {[%clk 0:02:53]} 12. Nxd7 {[%clk 0:02:09]}  Bxd7 {[%clk 0:02:53]} 13. e5 {[%clk 0:02:09]}  fxe5 {[%clk 0:02:43]} 14. fxe5 {[%clk 0:02:04]}  Bc5 {[%clk 0:02:20]} 15. dxc5 {[%clk 0:02:02]}  Qxc5 {[%clk 0:02:20]} 16. Bf2 {[%clk 0:01:59]}  Qe7 {[%clk 0:02:11]} 17. O-O {[%clk 0:01:59]}  c5 {[%clk 0:02:11]} 18. Nf3 {[%clk 0:01:59]}  Bc6 {[%clk 0:02:11]} 19. Qe2 {[%clk 0:01:54]}  g6 {[%clk 0:02:00]} 20. Be3 {[%clk 0:01:51]}  Nd7 {[%clk 0:01:56]} 21. Bg5 {[%clk 0:01:51]}  Qg7 {[%clk 0:01:55]} 22. Qe3 {[%clk 0:01:46]}  a6 {[%clk 0:01:46]} 23. Rf2 {[%clk 0:01:43]}  b5 {[%clk 0:01:37]} 24. Raf1 {[%clk 0:01:41]}  b4 {[%clk 0:01:22]} 25. cxb4 {[%clk 0:01:40]}  cxb4 {[%clk 0:01:22]} 26. Bh6 {[%clk 0:01:35]}  Qe7 {[%clk 0:01:22]} 27. Ng5 {[%clk 0:01:29]}  Qc5 {[%clk 0:01:13]} 28. Qxc5 {[%clk 0:01:22]}  Nxc5 {[%clk 0:01:13]} 29. Rf7 {[%clk 0:01:23]} 1-0

[Event "January 9 Early 2024"]
[Site "https://www.chess.com"]
[Date "2024.01.11"]
[Round "1"]
[White "Tan, Ralph"]
[Black "Iturrizaga Bonelli, Eduardo"]
[Result "0-1"]
[Board "81"]
[TimeControl "180+1"]
[WhiteFideId "30966590"]
[BlackFideId "3901211"]
[WhiteElo "2511"]
[BlackElo "2984"]
[WhiteTeam "USA"]
[BlackTeam "ESP"]
[WhiteClock "0:00:23"]
[BlackClock "0:01:00"]

1. Nf3 {[%clk 0:03:00]}  Nf6 {[%clk 0:02:59]} 2. g3 {[%clk 0:03:01]}  b6 {[%clk 0:02:59]} 3. Bg2 {[%clk 0:03:00]}  Bb7 {[%clk 0:02:59]} 4. d4 {[%clk 0:03:00]}  c5 {[%clk 0:02:59]} 5. O-O {[%clk 0:02:56]}  g6 {[%clk 0:02:59]} 6. c4 {[%clk 0:02:54]}  Bg7 {[%clk 0:02:56]} 7. Nc3 {[%clk 0:02:53]}  Ne4 {[%clk 0:02:54]} 8. Qd3 {[%clk 0:02:42]}  Nxc3 {[%clk 0:02:52]} 9. bxc3 {[%clk 0:02:41]}  O-O {[%clk 0:02:51]} 10. dxc5 {[%clk 0:02:21]}  bxc5 {[%clk 0:02:48]} 11. Rb1 {[%clk 0:02:22]}  Bc6 {[%clk 0:02:29]} 12. e4 {[%clk 0:02:13]}  Qa5 {[%clk 0:02:23]} 13. Be3 {[%clk 0:02:09]}  Na6 {[%clk 0:02:21]} 14. Rfc1 {[%clk 0:01:56]}  Rab8 {[%clk 0:02:20]} 15. Nd2 {[%clk 0:01:41]}  Rxb1 {[%clk 0:02:14]} 16. Qxb1 {[%clk 0:01:41]}  Rb8 {[%clk 0:02:12]} 17. Nb3 {[%clk 0:01:41]}  Qa4 {[%clk 0:02:06]} 18. Qc2 {[%clk 0:01:39]}  d6 {[%clk 0:01:55]} 19. h4 {[%clk 0:01:31]}  Bd7 {[%clk 0:01:43]} 20. Bf1 {[%clk 0:01:28]}  Be6 {[%clk 0:01:43]} 21. Qe2 {[%clk 0:01:22]}  h5 {[%clk 0:01:37]} 22. Bf4 {[%clk 0:01:16]}  Qa3 {[%clk 0:01:28]} 23. Rc2 {[%clk 0:00:44]}  Rb6 {[%clk 0:01:19]} 24. e5 {[%clk 0:00:36]}  d5 {[%clk 0:01:18]} 25. cxd5 {[%clk 0:00:35]}  Bxd5 {[%clk 0:01:19]} 26. c4 {[%clk 0:00:35]}  Be6 {[%clk 0:01:18]} 27. Bg2 {[%clk 0:00:34]}  Nb4 {[%clk 0:01:14]} 28. Bc1 {[%clk 0:00:23]}  Qa4 {[%clk 0:01:01]} 29. Nxc5 {[%clk 0:00:23]}  Qxc2 {[%clk 0:01:00]} 0-1

[Event "January 9 Early 2024"]
[Site "https://www.chess.com"]
[Date "2024.01.11"]
[Round "1"]
[White "Rottenwohrer Suarez, Juan"]
[Black "Dominguez Perez, Leinier"]
[Result "0-1"]
[Board "85"]
[TimeControl "180+1"]
[WhiteFideId "32068182"]
[BlackFideId "3503240"]
[WhiteElo "2507"]
[BlackElo "2975"]
[WhiteTeam "ESP"]
[BlackTeam "USA"]
[WhiteClock "0:00:01"]
[BlackClock "0:01:06"]

1. e4 {[%clk 0:02:51]}  c5 {[%clk 0:02:59]} 2. Nf3 {[%clk 0:02:41]}  d6 {[%clk 0:02:59]} 3. d4 {[%clk 0:02:04]}  cxd4 {[%clk 0:02:58]} 4. Nxd4 {[%clk 0:02:05]}  Nf6 {[%clk 0:02:58]} 5. Nc3 {[%clk 0:02:05]}  a6 {[%clk 0:02:58]} 6. Rg1 {[%clk 0:02:02]}  e5 {[%clk 0:02:57]} 7. Nb3 {[%clk 0:01:54]}  h5 {[%clk 0:02:57]} 8. Be2 {[%clk 0:01:06]}  Be6 {[%clk 0:02:52]} 9. Be3 {[%clk 0:01:06]}  Nbd7 {[%clk 0:02:52]} 10. Qd2 {[%clk 0:01:02]}  Rc8 {[%clk 0:02:44]} 11. h3 {[%clk 0:01:02]}  h4 {[%clk 0:02:27]} 12. Bg5 {[%clk 0:00:48]}  Be7 {[%clk 0:02:25]} 13. Be3 {[%clk 0:00:25]}  b5 {[%clk 0:02:21]} 14. Bf3 {[%clk 0:00:17]}  Nb6 {[%clk 0:02:18]} 15. Nd5 {[%clk 0:00:13]}  Nfxd5 {[%clk 0:02:03]} 16. exd5 {[%clk 0:00:13]}  Bf5 {[%clk 0:02:04]} 17. c3 {[%clk 0:00:05]}  Nc4 {[%clk 0:02:03]} 18. Qc1 {[%clk 0:00:05]}  O-O {[%clk 0:01:26]} 19. Be2 {[%clk 0:00:05]}  Nxe3 {[%clk 0:01:20]} 20. Qxe3 {[%clk 0:00:05]}  Bg5 {[%clk 0:01:21]} 21. Qa7 {[%clk 0:00:02]}  Ra8 {[%clk 0:01:15]} 22. Qb7 {[%clk 0:00:01]}  Re8 {[%clk 0:01:08]} 23. Rd1 {[%clk 0:00:01]}  Re7 {[%clk 0:01:06]} 0-1

[Event "January 9 Early 2024"]
[Site "https://www.chess.com"]
[Date "2024.01.11"]
[Round "1"]
[White "Niedbala, Bartlomiej"]
[Black "Manon-og, Ramon Jr."]
[Result "1-0"]
[Board "86"]
[TimeControl "180+1"]
[WhiteFideId "21834008"]
[BlackFideId "5200776"]
[WhiteElo "2678"]
[BlackElo "2352"]
[WhiteTeam "POL"]
[BlackTeam "PHI"]
[WhiteClock "0:00:53"]
[BlackClock "0:00:32"]

1. e4 {[%clk 0:02:56]}  c5 {[%clk 0:02:59]} 2. Nf3 {[%clk 0:02:56]}  d6 {[%clk 0:03:00]} 3. d4 {[%clk 0:02:56]}  cxd4 {[%clk 0:03:01]} 4. Nxd4 {[%clk 0:02:57]}  Nf6 {[%clk 0:03:01]} 5. Nc3 {[%clk 0:02:58]}  a6 {[%clk 0:03:02]} 6. g3 {[%clk 0:02:58]}  e5 {[%clk 0:03:01]} 7. Nf3 {[%clk 0:02:58]}  Bg4 {[%clk 0:03:01]} 8. h3 {[%clk 0:02:56]}  Bh5 {[%clk 0:03:00]} 9. Bg2 {[%clk 0:02:38]}  Be7 {[%clk 0:03:00]} 10. O-O {[%clk 0:02:38]}  h6 {[%clk 0:03:00]} 11. Be3 {[%clk 0:02:27]}  O-O {[%clk 0:02:59]} 12. Qd3 {[%clk 0:02:07]}  Nc6 {[%clk 0:02:57]} 13. Nh4 {[%clk 0:01:59]}  Qd7 {[%clk 0:02:44]} 14. Nf5 {[%clk 0:01:56]}  Nb4 {[%clk 0:02:42]} 15. Qd2 {[%clk 0:01:56]}  Rfd8 {[%clk 0:02:32]} 16. Bxh6 {[%clk 0:01:47]}  Bf8 {[%clk 0:02:19]} 17. Bxg7 {[%clk 0:01:38]}  Bxg7 {[%clk 0:02:17]} 18. a3 {[%clk 0:01:29]}  Nc6 {[%clk 0:02:13]} 19. Qg5 {[%clk 0:01:28]}  Bg6 {[%clk 0:02:13]} 20. Nxg7 {[%clk 0:01:27]}  Kxg7 {[%clk 0:02:13]} 21. f4 {[%clk 0:01:27]}  Rh8 {[%clk 0:01:46]} 22. f5 {[%clk 0:01:25]}  Rh5 {[%clk 0:01:45]} 23. Qd2 {[%clk 0:01:16]}  Bxf5 {[%clk 0:01:33]} 24. exf5 {[%clk 0:01:13]}  Rxf5 {[%clk 0:01:34]} 25. g4 {[%clk 0:01:11]}  Rxf1+ {[%clk 0:01:25]} 26. Rxf1 {[%clk 0:01:12]}  Nh7 {[%clk 0:01:25]} 27. Nd5 {[%clk 0:01:00]}  Rf8 {[%clk 0:01:11]} 28. Be4 {[%clk 0:00:58]}  Qe6 {[%clk 0:00:45]} 29. Bxh7 {[%clk 0:00:54]}  Kxh7 {[%clk 0:00:46]} 30. Rf6 {[%clk 0:00:53]}  Qd7 {[%clk 0:00:33]} 31. Qh6+ {[%clk 0:00:51]}  Kg8 {[%clk 0:00:33]} 32. Qg5+ {[%clk 0:00:52]}  Kh7 {[%clk 0:00:32]} 33. Rh6# {[%clk 0:00:53]} 1-0

[Event "January 9 Early 2024"]
[Site "https://www.chess.com"]
[Date "2024.01.11"]
[Round "1"]
[White "Gurevich, Dmitry"]
[Black "Radjabov, Teimour"]
[Result "0-1"]
[Board "87"]
[TimeControl "180+1"]
[WhiteFideId "2000407"]
[BlackFideId "13400924"]
[WhiteElo "2522"]
[BlackElo "3034"]
[WhiteTeam "USA"]
[BlackTeam "AZE"]
[WhiteClock "0:00:19"]
[BlackClock "0:01:20"]

1. d4 {[%clk 0:03:00]}  Nf6 {[%clk 0:02:59]} 2. c4 {[%clk 0:03:00]}  g6 {[%clk 0:02:59]} 3. Nc3 {[%clk 0:03:00]}  Bg7 {[%clk 0:03:00]} 4. e4 {[%clk 0:02:59]}  d6 {[%clk 0:03:00]} 5. Nf3 {[%clk 0:02:59]}  O-O {[%clk 0:03:00]} 6. Be2 {[%clk 0:02:59]}  e5 {[%clk 0:02:59]} 7. O-O {[%clk 0:02:59]}  h6 {[%clk 0:03:00]} 8. Re1 {[%clk 0:02:53]}  a5 {[%clk 0:02:56]} 9. d5 {[%clk 0:02:43]}  Na6 {[%clk 0:02:55]} 10. Be3 {[%clk 0:02:43]}  Ng4 {[%clk 0:02:55]} 11. Bd2 {[%clk 0:02:42]}  Nc5 {[%clk 0:02:55]} 12. h3 {[%clk 0:02:36]}  Nf6 {[%clk 0:02:55]} 13. Qc2 {[%clk 0:02:31]}  Nh5 {[%clk 0:02:53]} 14. Be3 {[%clk 0:02:25]}  Nf4 {[%clk 0:02:50]} 15. Bf1 {[%clk 0:02:22]}  Bd7 {[%clk 0:02:50]} 16. Rad1 {[%clk 0:02:09]}  Qf6 {[%clk 0:02:48]} 17. Nh2 {[%clk 0:02:02]}  Qe7 {[%clk 0:02:47]} 18. b3 {[%clk 0:01:54]}  Kh8 {[%clk 0:02:45]} 19. a3 {[%clk 0:01:53]}  f5 {[%clk 0:02:16]} 20. Bxf4 {[%clk 0:01:48]}  exf4 {[%clk 0:02:16]} 21. exf5 {[%clk 0:01:47]}  Qf6 {[%clk 0:02:16]} 22. Ne4 {[%clk 0:01:38]}  Bxf5 {[%clk 0:02:14]} 23. f3 {[%clk 0:01:30]}  Bxe4 {[%clk 0:02:04]} 24. fxe4 {[%clk 0:01:29]}  Qc3 {[%clk 0:02:05]} 25. Qxc3 {[%clk 0:01:17]}  Bxc3 {[%clk 0:02:06]} 26. Re2 {[%clk 0:01:17]}  Rae8 {[%clk 0:02:04]} 27. Ng4 {[%clk 0:01:02]}  Bg7 {[%clk 0:01:47]} 28. e5 {[%clk 0:00:45]}  h5 {[%clk 0:01:41]} 29. exd6 {[%clk 0:00:44]}  cxd6 {[%clk 0:01:37]} 30. Nf2 {[%clk 0:00:35]}  Nxb3 {[%clk 0:01:37]} 31. Ne4 {[%clk 0:00:25]}  Nd4 {[%clk 0:01:31]} 32. Ree1 {[%clk 0:00:24]}  f3 {[%clk 0:01:25]} 33. Kh1 {[%clk 0:00:20]}  f2 {[%clk 0:01:20]} 34. Re3 {[%clk 0:00:19]}  Nf5 {[%clk 0:01:20]} 0-1

[Event "January 9 Early 2024"]
[Site "https://www.chess.com"]
[Date "2024.01.11"]
[Round "1"]
[White "Bodnaruk, Anastasia"]
[Black "Saim, Mohamed Ilias"]
[Result "1-0"]
[Board "88"]
[TimeControl "180+1"]
[WhiteFideId "4181751"]
[BlackFideId "7900465"]
[WhiteElo "2554"]
[BlackElo "2095"]
[WhiteTeam "RUS"]
[BlackTeam "ALG"]
[WhiteClock "0:01:14"]
[BlackClock "0:00:08"]

1. e4 {[%clk 0:03:00]}  c6 {[%clk 0:02:59]} 2. d4 {[%clk 0:02:59]}  d5 {[%clk 0:03:00]} 3. e5 {[%clk 0:03:00]}  Bf5 {[%clk 0:03:00]} 4. g4 {[%clk 0:03:00]}  Be4 {[%clk 0:02:59]} 5. f3 {[%clk 0:03:00]}  Bg6 {[%clk 0:02:58]} 6. e6 {[%clk 0:03:00]}  Qd6 {[%clk 0:02:58]} 7. exf7+ {[%clk 0:02:59]}  Bxf7 {[%clk 0:02:59]} 8. Nc3 {[%clk 0:02:58]}  e5 {[%clk 0:02:53]} 9. Qe2 {[%clk 0:02:51]}  Nd7 {[%clk 0:02:39]} 10. Bf4 {[%clk 0:02:44]}  Qb4 {[%clk 0:02:11]} 11. O-O-O {[%clk 0:02:38]}  O-O-O {[%clk 0:02:05]} 12. Bxe5 {[%clk 0:02:32]}  Re8 {[%clk 0:01:51]} 13. f4 {[%clk 0:02:29]}  h5 {[%clk 0:01:35]} 14. g5 {[%clk 0:02:25]}  Ne7 {[%clk 0:01:28]} 15. Bh3 {[%clk 0:02:21]}  Bg6 {[%clk 0:01:21]} 16. Nf3 {[%clk 0:02:17]}  Nf5 {[%clk 0:01:18]} 17. Qd3 {[%clk 0:02:02]}  Nh4 {[%clk 0:01:06]} 18. f5 {[%clk 0:02:01]}  Nxf3 {[%clk 0:01:04]} 19. Qxf3 {[%clk 0:02:00]}  Nxe5 {[%clk 0:00:52]} 20. dxe5 {[%clk 0:01:49]}  Bf7 {[%clk 0:00:44]} 21. e6 {[%clk 0:01:46]}  Bg8 {[%clk 0:00:43]} 22. f6 {[%clk 0:01:44]}  Bxe6 {[%clk 0:00:38]} 23. Rhe1 {[%clk 0:01:38]}  Kd7 {[%clk 0:00:29]} 24. Nxd5 {[%clk 0:01:29]}  cxd5 {[%clk 0:00:21]} 25. Qxd5+ {[%clk 0:01:29]}  Qd6 {[%clk 0:00:18]} 26. Qb5+ {[%clk 0:01:28]}  Kc7 {[%clk 0:00:13]} 27. Rxd6 {[%clk 0:01:28]}  Bxd6 {[%clk 0:00:13]} 28. Rxe6 {[%clk 0:01:25]}  Bf4+ {[%clk 0:00:10]} 29. Kb1 {[%clk 0:01:26]}  Rd8 {[%clk 0:00:09]} 30. Re7+ {[%clk 0:01:23]}  Kd6 {[%clk 0:00:08]} 31. Qb4+ {[%clk 0:01:14]}  Kd5 {[%clk 0:00:08]} 32. Bg2# {[%clk 0:01:14]} 1-0

[Event "January 9 Early 2024"]
[Site "https://www.chess.com"]
[Date "2024.01.11"]
[Round "1"]
[White "Fernandez Garcia, Gumersindo"]
[Black "Ozates, Tuna"]
[Result "0-1"]
[Board "91"]
[TimeControl "180+1"]
[WhiteFideId "24516740"]
[BlackFideId "6354521"]
[WhiteElo "2347"]
[BlackElo "2673"]
[WhiteTeam "ESP"]
[BlackTeam "TUR"]
[WhiteClock "0:00:20"]
[BlackClock "0:01:25"]

1. e4 {[%clk 0:02:58]}  c5 {[%clk 0:02:57]} 2. c3 {[%clk 0:02:52]}  d5 {[%clk 0:02:56]} 3. exd5 {[%clk 0:02:52]}  Nf6 {[%clk 0:02:55]} 4. d4 {[%clk 0:02:53]}  cxd4 {[%clk 0:02:55]} 5. Qxd4 {[%clk 0:02:51]}  Qxd5 {[%clk 0:02:55]} 6. Qxd5 {[%clk 0:02:51]}  Nxd5 {[%clk 0:02:55]} 7. Nf3 {[%clk 0:02:51]}  Nc6 {[%clk 0:02:56]} 8. Be2 {[%clk 0:02:50]}  Bg4 {[%clk 0:02:55]} 9. O-O {[%clk 0:02:50]}  O-O-O {[%clk 0:02:55]} 10. h3 {[%clk 0:02:48]}  Bh5 {[%clk 0:02:55]} 11. Na3 {[%clk 0:02:38]}  f6 {[%clk 0:02:54]} 12. Nb5 {[%clk 0:02:35]}  a6 {[%clk 0:02:53]} 13. Nbd4 {[%clk 0:02:35]}  Nxd4 {[%clk 0:02:51]} 14. Nxd4 {[%clk 0:02:36]}  Bxe2 {[%clk 0:02:52]} 15. Nxe2 {[%clk 0:02:36]}  e5 {[%clk 0:02:53]} 16. Rd1 {[%clk 0:02:33]}  Bc5 {[%clk 0:02:52]} 17. a3 {[%clk 0:02:31]}  Nb6 {[%clk 0:02:34]} 18. Re1 {[%clk 0:02:10]}  Nc4 {[%clk 0:02:30]} 19. b3 {[%clk 0:02:00]}  Nd2 {[%clk 0:02:30]} 20. b4 {[%clk 0:01:57]}  Bb6 {[%clk 0:02:26]} 21. Ra2 {[%clk 0:01:39]}  Ne4 {[%clk 0:02:23]} 22. Be3 {[%clk 0:01:39]}  Bxe3 {[%clk 0:02:23]} 23. fxe3 {[%clk 0:01:40]}  Rd3 {[%clk 0:02:22]} 24. Rc2 {[%clk 0:01:28]}  Rxe3 {[%clk 0:02:21]} 25. Kf1 {[%clk 0:01:24]}  Rd8 {[%clk 0:02:17]} 26. Nc1 {[%clk 0:01:20]}  Rxe1+ {[%clk 0:01:59]} 27. Kxe1 {[%clk 0:01:20]}  h5 {[%clk 0:01:56]} 28. c4 {[%clk 0:01:18]}  g5 {[%clk 0:01:47]} 29. c5 {[%clk 0:01:18]}  g4 {[%clk 0:01:44]} 30. hxg4 {[%clk 0:01:17]}  hxg4 {[%clk 0:01:45]} 31. c6 {[%clk 0:01:16]}  b5 {[%clk 0:01:45]} 32. Ke2 {[%clk 0:01:03]}  Kc7 {[%clk 0:01:42]} 33. Nb3 {[%clk 0:01:00]}  Rd6 {[%clk 0:01:36]} 34. Na5 {[%clk 0:00:51]}  f5 {[%clk 0:01:34]} 35. Ke3 {[%clk 0:00:51]}  Ng3 {[%clk 0:01:26]} 36. Kf2 {[%clk 0:00:37]}  f4 {[%clk 0:01:26]} 37. Ra2 {[%clk 0:00:33]}  e4 {[%clk 0:01:26]} 38. Ra1 {[%clk 0:00:21]}  e3+ {[%clk 0:01:25]} 39. Ke1 {[%clk 0:00:20]}  f3 {[%clk 0:01:25]} 0-1